bitfinex-derivatives/quotes_ETHF0:USTF0_20241007
["timestamp","ask_amount","ask_price","bid_price","bid_amount"]
[1728310367661,3.2078,2492.2,2491.8,0.40136]
[1728310367861,4.21109,2492.2,2491.4,4.21138]
[1728310368179,3.2078,2492.2,2491.5,8.55821926]
[1728310368368,3.2078,2492.2,2492.1,0.40132]
[1728310368675,0.205,2492.1,2492.0,0.40134]
[1728310368974,0.205,2492.1,2492.0,4.41414]
[1728310369369,0.60632,2492.1,2492.0,4.0128]
[1728310369675,0.40132,2492.1,2492.0,3.8078]
[1728310369868,3.2078,2492.2,2492.0,3.8078]
[1728310370166,3.4128,2492.2,2492.1,0.40132]
[1728310370369,3.4128,2492.2,2491.9,0.7813]
[1728310370568,3.81411,2492.2,2492.0,0.40133]
[1728310370968,0.40139,2491.7,2491.5,0.40141]
[1728310371167,0.205,2491.9,2491.8,0.40137]
[1728310371371,0.205,2491.9,2491.4,3.5967]
[1728310371372,0.205,2491.9,2491.7,0.40138]
[1728310371566,3.2078,2492.2,2491.4,3.5967]
[1728310371567,1.00333,2492.1,2491.6,0.4014]
[1728310371766,0.60638,2491.8,2491.6,0.40139]
[1728310371972,0.60638,2491.8,2491.4,3.5967]
[1728310371973,0.40136,2491.9,2491.7,0.40138]
[1728310372168,0.205,2492.0,2491.8,0.40136]
[1728310372368,0.205,2492.0,2491.6,0.40139]
[1728310372568,0.40139,2491.7,2491.6,0.40139]
[1728310373079,0.40139,2491.7,2491.6,4.0136]
[1728310373263,0.40138,2491.8,2491.6,4.415]
[1728310373475,0.40139,2491.7,2491.6,0.4014]
[1728310373694,0.205,2491.8,2491.4,3.5967]
[1728310373880,0.60638,2491.8,2491.4,3.5967]
[1728310374068,0.60638,2491.8,2491.6,0.40139]
[1728310374390,0.205,2491.5,2491.4,3.99812]
[1728310374987,3.2078,2492.2,2491.4,7.6103]
[1728310375190,0.205,2491.6,2491.5,0.40142]
[1728310375394,0.40138,2491.8,2491.7,0.40138]
[1728310375696,0.40139,2491.7,2491.6,0.40139]
[1728310376102,0.40139,2491.7,2491.6,4.41499]
[1728310376300,0.40139,2491.7,2491.6,0.40139]
[1728310376601,0.40141,2491.6,2491.5,0.40141]
[1728310376994,0.40141,2491.6,2491.5,4.41501]
[1728310377398,0.60641,2491.6,2491.5,0.40141]
[1728310378004,0.40142,2491.5,2491.4,3.99813]
[1728310378203,0.60642,2491.5,2491.4,3.99813]
[1728310378510,4.21122,2491.9,2491.4,7.6103]
[1728310378704,0.205,2491.6,2491.5,0.40142]
[1728310378898,0.6064,2491.6,2491.5,0.40142]
[1728310379098,0.205,2491.6,2491.5,0.40142]
[1728310379307,0.6064,2491.6,2491.5,0.40142]
[1728310379607,0.205,2491.6,2491.5,0.40142]
[1728310380206,0.6064,2491.6,2491.5,0.40142]
[1728310380409,0.40142,2491.5,2491.4,3.60923]
[1728310380602,3.2078,2491.9,2491.4,3.2078]
[1728310380817,0.205,2491.8,2491.4,3.2078]
[1728310381109,0.60642,2491.5,2491.4,3.2078]
[1728310381310,0.60642,2491.5,2491.4,3.60924]
[1728310381529,0.205,2491.5,2491.4,3.60924]
[1728310381705,0.60642,2491.5,2491.4,3.60924]
[1728310381909,0.60642,2491.5,2491.4,3.2078]
[1728310382110,0.60642,2491.5,2491.2,0.40146]
[1728310382111,0.40145,2491.3,2491.2,0.40146]
[1728310382502,0.40148,2491.1,2491.0,0.4183]
[1728310382862,0.40148,2491.1,2490.5,1.00392]
[1728310382863,3.2078,2490.2,2488.8,2.09727789]
[1728310383114,3.2078,2490.2,2487.8,11.04501842]
[1728310383115,3.2078,2489.1,2488.0,3.2078]
[1728310383303,3.2078,2488.8,2488.1,3.2078]
[1728310383505,3.2078,2489.1,2488.4,3.2078]
[1728310383703,3.60961,2489.1,2488.4,3.2078]
[1728310384011,1.00438,2489.5,2488.4,3.2078]
[1728310384012,0.40185,2488.9,2488.4,3.2078]
[1728310384217,0.40187,2488.7,2488.4,3.2078]
[1728310384406,3.2078,2489.0,2488.4,3.2078]
[1728310384911,3.2078,2489.0,2488.0,3.87]
[1728310384912,0.40186,2488.8,2488.0,3.87]
[1728310385614,0.40188,2488.7,2488.0,3.87]
[1728310385915,3.2078,2489.0,2488.4,0.40192]
[1728310386221,3.60963,2489.0,2488.3,7.47973]
[1728310386517,3.2078,2489.0,2488.3,7.0778]
[1728310387410,0.40188,2488.7,2488.3,7.0778]
[1728310387718,0.40188,2488.7,2488.3,3.87]
[1728310388110,3.2078,2489.0,2488.3,3.87]
[1728310388315,0.40184,2488.9,2488.3,3.87]
[1728310388517,3.2078,2489.0,2488.3,4.27193]
[1728310388705,0.40186,2488.8,2488.3,4.27193]
[1728310389415,0.40188,2488.7,2488.3,3.87]
[1728310389804,3.2078,2489.0,2488.3,3.87]
[1728310390519,3.60964,2489.0,2488.6,3.87]
[1728310390823,0.40186,2488.8,2488.4,7.53611398]
[1728310391117,3.60969,2488.7,2488.3,3.87]
[1728310391307,4.21237,2489.0,2488.3,3.87]
[1728310391506,0.40186,2488.8,2488.3,3.87]
[1728310391715,4.21237,2489.0,2488.3,3.87]
[1728310391907,3.2078,2488.7,2488.3,3.87]
[1728310392113,3.60968,2488.7,2488.3,3.87]
[1728310392410,3.2078,2488.7,2488.3,3.87]
[1728310392912,3.2078,2488.7,2488.3,4.27193]
[1728310393415,3.60968,2488.7,2488.3,3.87]
[1728310393614,1.00442,2489.4,2488.3,3.87]
[1728310393615,3.60963,2489.0,2488.3,3.87]
[1728310394219,3.2078,2489.0,2488.6,0.40189]
[1728310394623,3.60963,2489.0,2488.5,0.40189]
[1728310395020,3.2078,2489.0,2488.3,3.87]
[1728310395223,3.2078,2488.7,2488.4,0.40192]
[1728310395457,3.2078,2489.0,2488.6,0.40188]
[1728310395913,3.60962,2489.0,2488.5,0.40189]
[1728310396113,3.2078,2489.0,2488.6,0.40188]
[1728310396704,3.2078,2489.0,2488.4,0.40191]
[1728310397100,3.2078,2489.0,2488.5,0.4019]
[1728310399010,3.60962,2489.0,2488.2,3.2078]
[1728310399305,3.2078,2489.0,2488.2,3.2078]
[1728310399502,3.2078,2489.0,2488.7,0.40187]
[1728310399700,3.2078,2489.0,2488.2,4.21267]
[1728310400010,3.2078,2489.0,2488.8,0.40185]
[1728310400308,3.2078,2489.0,2488.7,0.40186]
[1728310400904,3.2078,2489.0,2488.4,3.87]
[1728310401295,3.2078,2489.0,2488.7,0.40187]
[1728310401496,3.2078,2489.0,2488.6,0.40188]
[1728310401688,3.2078,2489.0,2488.2,4.21267]
[1728310401995,3.60964,2489.0,2488.5,0.4019]
[1728310402187,3.60964,2489.0,2488.1,4.87491]
[1728310402490,3.60964,2489.0,2488.6,0.40188]
[1728310402687,3.2078,2489.0,2488.6,0.40189]
[1728310402993,3.60964,2489.0,2488.6,0.40189]
[1728310403193,3.60963,2489.0,2488.6,0.40189]
[1728310403491,3.2078,2489.0,2488.6,0.40189]
[1728310403692,3.60963,2489.0,2488.6,0.40189]
[1728310404292,3.2078,2489.0,2488.3,1.00485]
[1728310404592,3.60963,2489.0,2488.7,0.40187]
[1728310404793,0.40184,2488.9,2488.6,0.40187]
[1728310405088,3.60964,2489.0,2488.7,0.40187]
[1728310405386,3.60964,2489.0,2488.1,3.87]
[1728310405387,3.2078,2489.0,2488.4,1.00481]
[1728310405695,3.60963,2489.0,2488.7,0.40186]
[1728310405897,0.40185,2488.9,2488.7,0.40187]
[1728310406191,3.60963,2489.0,2488.7,0.40187]
[1728310406392,0.40184,2488.9,2488.8,0.40185]
[1728310406584,3.2078,2489.0,2488.1,7.0778]
[1728310406898,0.40184,2488.9,2488.7,0.40187]
[1728310407098,3.2078,2489.0,2488.1,1.00493]
[1728310407399,3.6097,2488.6,2488.5,0.4019]
[1728310407588,3.6097,2488.6,2488.1,1.00493]
[1728310407791,3.2078,2488.6,2488.5,0.4019]
[1728310407990,3.60969,2488.6,2488.5,0.4019]
[1728310408389,3.2078,2488.6,2488.4,0.40192]
[1728310408695,0.40191,2488.5,2488.4,0.40191]
[1728310409196,3.6097,2488.6,2488.4,0.40191]
[1728310409395,0.40191,2488.5,2488.4,0.40191]
[1728310409996,3.2078,2488.6,2488.1,1.00492]
[1728310410294,0.40192,2488.5,2488.4,0.40191]
[1728310410694,3.2078,2488.6,2488.1,1.00492]
[1728310411092,3.6097,2488.6,2488.5,0.4019]
[1728310411495,7.6281,2488.6,2488.5,0.4019]
[1728310414499,3.2078,2488.6,2488.5,0.4019]
[1728310414697,3.60964,2488.9,2488.5,0.4019]
[1728310414999,0.40188,2488.7,2488.6,0.40187]
[1728310415303,4.21243,2488.9,2488.4,1.0048]
[1728310415602,0.40186,2488.8,2488.7,0.40186]
[1728310415797,3.60964,2488.9,2488.8,0.40186]
[1728310415994,3.2078,2488.4,2486.6,3.2078]
[1728310416194,3.2078,2488.4,2486.5,0.3969]
[1728310416195,3.14,2487.0,2486.5,0.3969]
[1728310416399,3.14,2486.8,2486.5,0.8162]
[1728310416900,0.40217,2486.9,2486.6,0.40221]
[1728310417098,3.14,2487.0,2486.5,0.8162]
[1728310417505,3.14,2487.0,2486.7,0.40218]
[1728310417802,3.2078,2487.1,2487.0,0.40215]
[1728310418098,3.2078,2487.4,2487.2,0.40211]
[1728310418299,3.2078,2487.4,2486.8,3.2078]
[1728310418500,3.60989,2487.4,2486.9,0.40216]
[1728310418704,3.60989,2487.4,2486.8,3.2078]
[1728310418902,3.60989,2487.4,2486.9,0.40216]
[1728310419092,0.4021,2487.3,2486.8,3.2078]
[1728310419299,0.40211,2487.2,2487.0,0.40213]
[1728310419497,0.40211,2487.3,2487.1,0.40213]
[1728310419899,3.2078,2487.4,2486.8,3.2078]
[1728310420203,0.40211,2487.3,2487.1,0.40212]
[1728310421008,3.2078,2487.4,2486.8,3.2078]
[1728310421211,3.2078,2487.4,2487.3,0.4021]
[1728310421411,0.4021,2487.3,2487.1,0.40212]
[1728310421599,0.4021,2487.3,2487.2,0.40211]
[1728310421910,0.4021,2487.3,2486.8,3.2078]
[1728310422099,0.4021,2487.3,2487.1,0.40212]
[1728310422295,0.4021,2487.3,2487.2,0.40211]
[1728310422701,3.60989,2487.4,2486.9,0.40216]
[1728310422906,3.60989,2487.4,2486.8,4.21324]
[1728310422907,3.2078,2487.4,2487.2,0.4021]
[1728310423207,0.4021,2487.3,2487.2,0.4021]
[1728310423408,3.2078,2487.4,2486.8,4.21324]
[1728310423604,3.2078,2487.4,2487.3,0.4021]
[1728310424708,3.2078,2487.7,2487.1,0.4131]
[1728310424902,3.2078,2487.4,2487.1,0.4131]
[1728310425101,3.2078,2487.4,2486.8,1.00544]
[1728310425308,0.40211,2487.3,2487.1,0.40213]
[1728310425516,0.40211,2487.3,2487.2,0.40211]
[1728310425810,3.2078,2487.4,2486.6,1.41862]
[1728310426002,0.40212,2487.2,2486.7,0.40219]
[1728310426201,0.4021,2487.3,2487.2,0.40211]
[1728310426409,3.2078,2487.4,2486.6,1.41862]
[1728310426603,4.21304,2487.4,2486.6,1.41862]
[1728310426802,4.21304,2487.4,2486.7,1.00549]
[1728310427006,4.21304,2487.4,2486.6,1.41862]
[1728310427210,3.2078,2487.1,2486.6,0.4131]
[1728310427413,0.40215,2487.0,2486.9,0.40216]
[1728310427815,0.40217,2486.9,2486.8,0.40217]
[1728310428004,0.40216,2487.0,2486.9,0.40216]
[1728310428408,0.40217,2486.9,2486.8,0.40216]
[1728310428717,0.40219,2486.8,2486.7,0.40219]
[1728310428914,3.60999,2486.8,2486.7,0.40219]
[1728310429109,0.40215,2487.0,2486.9,0.40215]
[1728310429307,4.21315,2487.1,2486.5,0.8162]
[1728310429511,0.40217,2486.9,2486.8,0.40217]
[1728310430012,0.40216,2487.0,2486.9,0.40215]
[1728310430710,0.40218,2486.9,2486.8,0.40217]
[1728310431216,0.40216,2487.0,2486.9,0.40215]
[1728310431518,0.40217,2486.9,2486.8,0.40216]
[1728310431906,0.40219,2486.8,2486.7,0.40218]
[1728310432214,0.40217,2486.9,2486.8,0.40217]
[1728310432404,0.40219,2486.8,2486.7,0.40219]
[1728310432804,0.40219,2486.8,2486.5,0.8162]
[1728310432805,0.40221,2486.6,2486.5,0.8162]
[1728310433022,0.40221,2486.6,2486.5,0.3969]
[1728310433317,0.40221,2486.6,2486.5,0.79913]
[1728310433519,3.60999,2486.8,2486.7,0.40219]
[1728310434016,0.4022,2486.7,2486.6,0.40219]
[1728310435510,3.2078,2486.8,2486.7,0.40219]
[1728310437123,0.40215,2487.0,2486.9,0.40216]
[1728310437607,3.2078,2487.1,2486.7,1.00549]
[1728310437812,0.40216,2487.0,2486.9,0.40215]
[1728310438415,3.2078,2487.1,2487.0,0.40215]
[1728310439621,0.40209,2487.4,2487.3,0.4021]
[1728310440521,3.60987,2487.5,2487.4,0.40208]
[1728310440720,3.2078,2487.5,2487.4,0.40208]
[1728310440916,0.40206,2487.6,2487.5,0.40207]
[1728310441118,3.2078,2487.6,2487.5,0.40207]
[1728310441312,3.60985,2487.6,2487.5,0.40207]
[1728310441815,3.2078,2487.6,2487.5,0.40207]
[1728310442021,0.40202,2487.8,2487.7,0.40202]
[1728310442413,6.3478,2487.9,2487.2,0.4039]
[1728310442617,0.40203,2487.8,2487.6,0.40204]
[1728310442914,0.40203,2487.7,2487.6,0.40204]
[1728310443119,3.14,2487.7,2487.2,0.4039]
[1728310443329,3.14,2487.7,2487.2,1.40918]
[1728310443625,3.60985,2487.6,2487.5,0.40207]
[1728310443924,3.2078,2487.6,2487.5,0.40207]
[1728310444422,0.40207,2487.5,2487.2,0.4039]
[1728310444717,0.40207,2487.5,2487.4,0.40207]
[1728310445320,3.14,2487.5,2487.2,0.4039]
[1728310445524,3.2078,2487.6,2487.5,0.40207]
[1728310445816,3.2078,2487.9,2487.3,1.00525]
[1728310446025,0.40204,2487.7,2487.6,0.40204]
[1728310448020,0.40206,2487.6,2487.5,0.40206]
[1728310448225,0.40208,2487.5,2487.4,0.40208]
[1728310448726,6.3478,2487.6,2487.2,0.4039]
[1728310448919,0.40208,2487.5,2487.4,0.40207]
[1728310449116,0.4021,2487.4,2487.3,0.40209]
[1728310449320,0.4021,2487.4,2486.9,3.2078]
[1728310449321,0.40216,2487.0,2486.9,0.40216]
[1728310449516,3.54216,2487.0,2486.9,0.40216]
[1728310449819,3.14,2487.0,2486.9,0.40216]
[1728310450220,3.54215,2487.0,2486.9,0.40216]
[1728310450419,6.3478,2487.2,2487.1,0.40213]
[1728310450627,3.2078,2487.5,2487.4,0.40208]
[1728310453922,0.40212,2487.3,2487.2,0.40211]
[1728310454122,3.54212,2487.3,2487.2,0.40211]
[1728310454426,6.74988,2487.5,2487.4,0.40208]
[1728310454628,10.76988,2487.5,2487.4,0.40208]
[1728310454821,6.74988,2487.5,2487.4,0.40208]
[1728310455324,3.2078,2487.5,2487.4,0.40208]
[1728310455522,3.60987,2487.5,2487.4,0.40208]
[1728310455924,3.2078,2487.5,2487.4,0.40208]
[1728310458826,0.40205,2487.6,2487.5,0.40207]
[1728310459029,0.40204,2487.7,2487.6,0.40203]
[1728310459530,3.60983,2487.8,2487.7,0.40203]
[1728310459724,0.40206,2487.7,2487.6,0.40204]
[1728310461027,0.40206,2487.7,2487.4,0.4213]
[1728310461327,0.40207,2487.6,2487.5,0.40205]
[1728310462529,3.60983,2487.8,2487.7,0.40203]
[1728310462830,3.2078,2487.8,2487.7,0.40203]
[1728310463035,3.60982,2487.8,2487.7,4.42203]
[1728310463233,3.2078,2487.8,2487.7,4.42203]
[1728310463427,3.60982,2487.8,2487.7,0.40203]
[1728310463636,3.2078,2487.8,2487.7,0.40203]
[1728310463927,0.402,2488.0,2487.7,4.02]
[1728310464128,0.402,2487.9,2487.8,0.40202]
[1728310464331,6.3478,2488.1,2487.8,0.40202]
[1728310464530,0.402,2488.0,2487.8,0.40202]
[1728310465434,6.3478,2488.1,2487.4,1.4265]
[1728310465624,0.40199,2488.0,2487.8,0.40201]
[1728310465825,6.3478,2488.1,2487.9,0.402]
[1728310466036,0.40199,2488.0,2487.8,0.402]
[1728310466237,6.74977,2488.1,2487.8,0.402]
[1728310466437,6.3478,2488.1,2487.4,1.4265]
[1728310466635,2.5658,2488.1,2487.5,3.14]
[1728310466958,0.606,2489.7,2488.4,9.597]
[1728310467237,3.2078,2490.6,2489.7,1.00428]
[1728310467429,3.2078,2490.6,2490.4,0.40159]
[1728310467630,3.2078,2490.6,2490.5,0.40158]
[1728310467936,3.14,2490.8,2490.3,3.2078]
[1728310468328,3.14,2490.8,2490.5,0.40157]
[1728310468529,3.2078,2490.9,2490.0,4.21196]
[1728310468735,3.2078,2490.4,2489.8,3.2078]
[1728310468937,3.2078,2490.4,2489.6,1.00432]
[1728310469138,3.2078,2490.4,2490.0,0.40165]
[1728310469333,3.2078,2490.4,2489.4,3.2078]
[1728310469935,3.2078,2490.4,2489.4,3.6085]
[1728310470238,3.2078,2490.4,2489.4,4.0013]
[1728310470434,3.86,2490.2,2489.9,0.40167]
[1728310470636,3.86,2490.2,2490.0,0.40165]
[1728310470835,3.86,2490.2,2489.4,4.0013]
[1728310471042,3.86,2490.2,2490.0,0.40166]
[1728310471546,3.60941,2490.4,2490.0,0.40166]
[1728310471547,4.016,2490.1,2490.0,0.40166]
[1728310471742,4.016,2490.3,2490.1,0.40163]
[1728310471938,3.2078,2490.2,2490.1,0.40163]
[1728310472335,7.2238,2490.2,2490.1,0.40163]
[1728310474543,7.2238,2490.2,2490.0,0.40165]
[1728310474748,3.2078,2490.2,2489.7,3.2078]
[1728310474941,3.2078,2490.2,2489.5,1.00436]
[1728310475147,3.60944,2490.2,2489.9,0.40167]
[1728310475845,3.2078,2490.2,2489.9,0.40167]
[1728310476252,3.2078,2490.2,2489.4,4.0013]
[1728310476441,3.60943,2490.2,2489.9,0.40167]
[1728310476752,7.0678,2490.2,2489.6,0.40172]
[1728310477047,0.40167,2490.0,2489.4,4.0013]
[1728310477247,0.4257,2490.1,2489.4,4.0013]
[1728310477447,0.40166,2490.0,2489.7,0.4017]
[1728310477647,0.4257,2490.1,2489.4,4.0013]
[1728310477947,0.4257,2490.1,2489.8,0.40168]
[1728310477948,0.82735,2490.1,2489.8,0.40168]
[1728310478150,0.40169,2489.9,2489.6,0.40172]
[1728310478345,1.42983,2490.1,2489.4,4.0013]
[1728310478346,0.4257,2490.1,2489.4,4.0013]
[1728310478550,3.86,2489.9,2489.4,3.2078]
[1728310478741,0.4257,2490.1,2489.4,3.2078]
[1728310478943,0.82736,2490.1,2489.8,0.40169]
[1728310480241,0.82735,2490.1,2489.8,0.40169]
[1728310480854,0.4257,2490.1,2489.4,3.2078]
[1728310481056,0.82735,2490.1,2489.8,0.40168]
[1728310481257,0.4257,2490.1,2489.8,0.40168]
[1728310481458,0.40166,2490.0,2489.8,0.40168]
[1728310481861,0.4257,2490.1,2489.4,4.21218]
[1728310481862,0.40169,2489.9,2489.7,0.4017]
[1728310482376,0.40169,2489.8,2489.4,3.2078]
[1728310482554,0.4257,2490.1,2489.8,0.40169]
[1728310482863,0.4017,2489.8,2489.6,0.40172]
[1728310483068,0.40169,2489.9,2489.7,0.40171]
[1728310483357,0.40169,2489.9,2489.1,1.79151]
[1728310483358,1.00431,2489.7,2489.2,0.40178]
[1728310483563,0.40177,2489.4,2489.2,0.40178]
[1728310483760,1.00431,2489.7,2489.1,3.9948]
[1728310484060,0.40179,2489.2,2489.1,0.787]
[1728310484361,0.40178,2489.3,2489.1,1.1888]
[1728310484565,0.40179,2489.2,2489.1,0.787]
[1728310485060,0.40179,2489.3,2489.1,1.1888]
[1728310485253,3.6126,2489.5,2489.1,0.787]
[1728310485457,0.40175,2489.5,2489.3,0.40176]
[1728310485854,0.40174,2489.5,2489.1,0.787]
[1728310486056,0.40179,2489.3,2489.1,1.1888]
[1728310486251,4.86435,2489.6,2489.1,0.3903]
[1728310486252,0.40179,2489.2,2489.1,0.3903]
[1728310486457,1.0044,2489.4,2488.7,3.2078]
[1728310486665,3.2078,2489.2,2488.7,0.40186]
[1728310486861,5.2753,2489.4,2488.6,0.4099]
[1728310486862,0.40187,2488.7,2488.6,0.4099]
[1728310487658,0.40186,2488.8,2488.7,0.40187]
[1728310487854,3.2078,2488.9,2488.6,0.4099]
[1728310488050,3.2078,2488.9,2488.8,0.40186]
[1728310488051,3.60964,2488.9,2488.8,0.40186]
[1728310488259,3.2078,2488.9,2488.8,0.40186]
[1728310488967,0.40182,2489.1,2488.6,0.4099]
[1728310489265,0.4018,2489.2,2489.1,0.4018]
[1728310490457,3.60958,2489.3,2489.2,0.40179]
[1728310490658,3.2078,2489.3,2489.2,0.40179]
[1728310490863,3.2078,2489.3,2489.2,4.41939]
[1728310491460,3.2078,2489.3,2489.2,0.40179]
[1728310491461,3.60957,2489.3,2489.2,0.40179]
[1728310491662,0.40177,2489.4,2489.0,0.811]
[1728310491861,0.40177,2489.4,2489.3,0.40177]
[1728310492159,4.21214,2489.6,2489.3,0.40177]
[1728310492160,1.00438,2489.5,2489.3,0.40177]
[1728310492366,0.40177,2489.4,2489.3,0.40177]
[1728310493965,0.40179,2489.3,2489.2,0.40178]
[1728310494564,0.40177,2489.4,2489.3,0.40176]
[1728310495061,6.3478,2489.6,2489.0,1.81556]
[1728310495268,3.60954,2489.6,2489.5,0.40174]
[1728310495656,3.2078,2489.6,2489.5,0.40174]
[1728310495855,0.40172,2489.7,2489.6,0.40173]
[1728310496267,0.4017,2489.8,2489.3,1.39564]
[1728310496475,0.40171,2489.8,2489.7,0.4017]
[1728310496768,1.0042,2489.9,2489.8,0.40168]
[1728310496769,3.60949,2489.9,2489.8,0.40168]
[1728310497161,3.2078,2489.9,2489.6,0.4133]
[1728310497363,0.40166,2489.8,2489.7,0.40165]
[1728310497565,3.2078,2489.9,2489.6,0.4133]
[1728310497972,0.40167,2489.7,2489.6,0.81498]
[1728310498171,3.2078,2489.9,2489.6,0.81498]
[1728310498172,0.40166,2489.8,2489.6,0.81498]
[1728310498366,0.40166,2489.8,2489.7,0.40167]
[1728310498563,0.40167,2489.7,2489.6,0.81498]
[1728310498872,4.21191,2489.9,2489.6,0.81498]
[1728310498873,0.40166,2489.8,2489.7,0.40166]
[1728310499773,0.40167,2489.7,2489.5,0.4017]
[1728310499968,4.21176,2490.3,2489.5,6.3478]
[1728310500267,0.40164,2490.0,2489.9,0.40163]
[1728310500468,0.40164,2490.0,2489.5,6.3478]
[1728310500469,0.40165,2489.9,2489.5,6.3478]
[1728310500665,0.40165,2489.9,2489.8,0.40165]
[1728310500872,0.40161,2490.1,2490.0,0.40162]
[1728310501189,4.21176,2490.3,2490.2,0.40159]
[1728310501190,3.60937,2490.3,2490.2,0.40159]
[1728310501386,3.2078,2490.3,2490.2,0.40159]
[1728310501870,0.40156,2490.4,2490.3,0.40157]
[1728310502073,42.36453673,2490.9,2490.0,0.8254]
[1728310502074,1.00372,2490.9,2490.7,0.4015]
[1728310502378,0.40151,2490.8,2490.7,0.4015]
[1728310502767,1.00355,2491.3,2490.7,4.0152]
[1728310502976,0.40148,2490.9,2490.8,0.4197]
[1728310503376,0.40151,2490.7,2490.6,0.81172]
[1728310503669,3.14,2491.0,2490.6,0.4102]
[1728310503873,1.00362,2491.1,2490.7,0.4015]
[1728310504074,1.00359,2491.2,2490.9,0.40147]
[1728310504365,1.00359,2491.2,2490.8,0.40149]
[1728310504366,0.40148,2490.9,2490.8,0.40149]
[1728310504567,1.00359,2491.2,2490.8,0.40149]
[1728310504872,1.00359,2491.2,2490.6,0.4102]
[1728310505071,0.40149,2490.9,2490.8,0.40149]
[1728310505375,0.4015,2490.8,2490.7,0.4015]
[1728310505572,0.40148,2490.9,2490.8,0.40149]
[1728310505768,0.40147,2491.0,2490.9,0.40147]
[1728310505970,1.00364,2491.1,2490.6,0.4102]
[1728310506169,1.00358,2491.2,2490.6,0.4102]
[1728310506170,1.00366,2491.0,2490.6,0.4102]
[1728310506469,0.4015,2490.8,2490.7,0.4015]
[1728310506669,0.40148,2490.9,2490.8,0.40148]
[1728310507077,0.4015,2490.8,2490.7,0.40149]
[1728310507378,0.40151,2490.7,2490.6,0.4102]
[1728310507678,0.40151,2490.7,2490.6,0.81172]
[1728310508679,3.2078,2491.1,2490.6,0.4102]
[1728310508872,0.40148,2490.9,2490.8,0.40148]
[1728310509369,3.2078,2491.4,2490.6,0.4102]
[1728310509569,0.4015,2490.8,2490.7,0.4015]
[1728310509766,3.2078,2491.4,2490.6,0.4102]
[1728310509968,0.40152,2490.6,2490.5,3.2078]
[1728310510377,0.40152,2490.6,2490.5,3.60934]
[1728310510586,1.00375,2490.8,2490.5,3.60934]
[1728310510883,0.4015,2490.8,2490.7,0.40151]
[1728310511070,0.4149,2491.0,2490.5,3.2078]
[1728310511275,3.2078,2491.1,2490.5,3.2078]
[1728310511678,0.40147,2491.0,2490.9,0.40147]
[1728310512475,3.2078,2491.4,2490.7,1.00377]
[1728310512672,0.40145,2491.1,2491.0,0.40145]
[1728310514171,0.40147,2491.0,2490.9,0.40147]
[1728310514383,0.40147,2491.0,2490.9,0.40146]
[1728310514876,1.00358,2491.2,2490.8,0.3867]
[1728310515177,0.40148,2491.0,2490.9,0.40147]
[1728310516070,5.01809,2491.0,2490.4,4.6097]
[1728310516274,1.00367,2491.0,2490.4,0.4197]
[1728310516472,0.40153,2490.7,2490.6,0.40152]
[1728310516675,0.4015,2490.9,2490.8,0.40148]
[1728310516884,0.4134,2491.3,2490.6,0.40151]
[1728310516885,0.40152,2490.7,2490.6,0.40151]
[1728310517079,0.40151,2490.8,2490.7,0.4015]
[1728310517281,1.0037,2490.9,2490.4,0.4197]
[1728310517482,0.40153,2490.6,2490.5,0.40154]
[1728310517986,0.40154,2490.5,2490.4,0.4197]
[1728310518175,0.40157,2490.3,2490.2,0.40158]
[1728310518981,4.016,2490.3,2489.8,4.5787]
[1728310519181,0.40172,2489.4,2489.3,3.2078]
[1728310519481,0.40172,2489.4,2488.9,0.3887]
[1728310519679,0.40172,2489.4,2489.3,3.2078]
[1728310519989,0.40172,2489.4,2488.7,5.19455]
[1728310519990,0.40179,2489.0,2488.7,3.60963]
[1728310520177,1.00434,2489.3,2488.7,3.60963]
[1728310520178,0.40177,2489.1,2488.8,0.40181]
[1728310520567,3.2078,2489.5,2488.7,7.0678]
[1728310520773,2.7188,2489.9,2489.0,7.0678]
[1728310520774,3.2078,2489.9,2489.0,7.0678]
[1728310520977,0.40164,2490.0,2489.3,7.0678]
[1728310521177,0.40166,2489.8,2489.6,0.40168]
[1728310521381,0.40168,2489.7,2489.4,0.40171]
[1728310522182,0.40169,2489.6,2489.4,0.40171]
[1728310522481,1.00409,2490.0,2489.2,0.40174]
[1728310522482,0.40172,2489.5,2489.2,0.40174]
[1728310522672,1.00422,2489.6,2488.7,0.80922]
[1728310522869,0.40179,2489.0,2488.7,0.40182]
[1728310523074,0.40177,2489.1,2488.9,0.40179]
[1728310523483,0.40176,2489.2,2488.9,0.40179]
[1728310523781,1.0043,2489.4,2488.8,0.40181]
[1728310523782,0.40178,2489.0,2488.8,0.40181]
[1728310523972,0.40178,2489.0,2488.8,0.4018]
[1728310524373,1.00437,2489.3,2488.8,0.4018]
[1728310524374,0.40175,2489.2,2488.8,0.4018]
[1728310524574,1.00434,2489.3,2488.6,0.4067]
[1728310524775,0.40181,2488.9,2488.7,0.40183]
[1728310525075,3.2078,2489.3,2488.7,0.40183]
[1728310525271,0.40178,2489.0,2488.7,0.40183]
[1728310525578,0.40183,2488.8,2488.6,0.80854]
[1728310525883,0.40175,2489.3,2489.1,0.40176]
[1728310526274,0.40175,2489.3,2488.7,4.21239]
[1728310526477,0.40176,2489.2,2489.1,0.40176]
[1728310526883,0.40171,2489.5,2489.4,0.40172]